fUSD/lending_fUSD_20251206
["ID","MTS","AMOUNT","RATE_DAILY","PERIOD"]
[396548218,1765045848646,-155.519024,0.00016712,2]
[396548219,1765045848656,-155.519024,0.00016712,2]
[396548220,1765045848665,-500.0,0.00016712,2]
[396548221,1765045848674,-500.0,0.00016712,2]
[396548222,1765045848684,-500.0,0.00016712,2]
[396548223,1765045848693,-500.0,0.00016712,2]
[396548224,1765045848702,-500.0,0.00016712,2]
[396548225,1765045848711,-500.0,0.00016712,2]
[396548226,1765045848721,-500.0,0.00016712,2]
[396548227,1765045848730,-500.0,0.00016712,2]
[396548228,1765045848741,-500.0,0.00016712,2]
[396548229,1765045848752,-2519.33,0.00016712,2]
[396548230,1765045848763,-285.77082357,0.00016712,2]
[396548231,1765045848773,-500.0,0.00016712,2]
[396548232,1765045848783,-500.0,0.00016712,2]
[396548233,1765045848793,-500.0,0.00016712,2]
[396548234,1765045848804,-500.0,0.00016712,2]
[396548235,1765045848814,-500.0,0.00016712,2]
[396548236,1765045848824,-500.0,0.00016712,2]
[396548237,1765045848834,-500.0,0.00016712,2]
[396548238,1765045848846,-500.0,0.00016712,2]
[396548239,1765045848855,-500.0,0.00016712,2]
[396548240,1765045848865,-500.0,0.00016712,2]
[396548241,1765045848876,-500.0,0.00016712,2]
[396548242,1765045848886,-500.0,0.00016712,2]
[396548243,1765045848896,-2502.45,0.00016712,2]
[396548244,1765045848906,-2363.34,0.00016712,2]
[396548245,1765045848916,-2292.03,0.00016712,2]
[396548246,1765045848927,-500.0,0.00016712,2]
[396548247,1765045848936,-277.61718153,0.00016712,2]
[396548248,1765045848946,-500.0,0.00016712,2]
[396548249,1765045848957,-500.0,0.00016712,2]
[396548250,1765045848967,-500.0,0.00016712,2]
[396548251,1765045848977,-150.5,0.00016712,2]
[396548252,1765045848987,-500.0,0.00016712,2]
[396548253,1765045849209,-2576.97,0.00016712,2]
[396548254,1765045849219,-500.0,0.00016712,2]
[396548255,1765045849229,-500.0,0.00016712,2]
[396548256,1765045849238,-500.0,0.00016712,2]
[396548257,1765045849247,-500.0,0.00016712,2]
[396548258,1765045849257,-500.0,0.00016712,2]
[396548259,1765045849266,-556.03099801,0.00016712,2]
[396548260,1765045849276,-500.0,0.00016712,2]
[396548261,1765045849286,-500.0,0.00016712,2]
[396548262,1765045849296,-500.0,0.00016712,2]
[396548263,1765045849306,-702.46,0.00016712,2]
[396548264,1765045849316,-500.0,0.00016712,2]
[396548265,1765045849326,-1085.48,0.00016712,2]
[396548266,1765045849336,-204.02956509,0.00016712,2]
[396548267,1765045849345,-500.0,0.00016712,2]
[396548268,1765045849355,-500.0,0.00016712,2]
[396548269,1765045849364,-500.0,0.00016712,2]
[396548270,1765045849373,-500.0,0.00016712,2]
[396548271,1765045849384,-500.0,0.00016712,2]
[396548272,1765045849394,-500.0,0.00016712,2]
[396548273,1765045849405,-594.84,0.00016712,2]
[396548274,1765045849416,-500.0,0.00016712,2]
[396548275,1765045849428,-500.0,0.00016712,2]
[396548276,1765045849444,-560.796416,0.00016712,2]
[396548277,1765045849454,-2257.49,0.00016712,2]
[396548278,1765045849464,-1026.79,0.00016712,2]
[396548279,1765045849475,-500.0,0.00016712,2]
[396548280,1765045849484,-500.0,0.00016712,2]
[396548281,1765045849495,-500.0,0.00016712,2]
[396548282,1765045849504,-500.0,0.00016712,2]
[396548283,1765045849515,-500.0,0.00016712,2]
[396548284,1765045849525,-2239.22,0.00016712,2]
[396548285,1765045849534,-500.0,0.00016712,2]
[396548286,1765045849543,-608.83,0.00016712,2]
[396548287,1765045849553,-526.76,0.00016712,2]
[396548288,1765045849563,-500.0,0.00016712,2]
[396548289,1765045849572,-500.0,0.00016712,2]
[396548290,1765045849582,-500.0,0.00016712,2]
[396548291,1765045849591,-500.0,0.00016712,2]
[396548292,1765045849602,-500.0,0.00016712,2]
[396548293,1765045849611,-500.0,0.00016712,2]
[396548294,1765045849620,-500.0,0.00016712,2]
[396548295,1765045849629,-500.0,0.00016712,2]
[396548296,1765045849639,-2265.79,0.00016712,2]
[396548297,1765045849648,-500.0,0.00016712,2]
[396548298,1765045849658,-500.0,0.00016712,2]
[396548299,1765045849667,-500.0,0.00016712,2]
[396548300,1765045849676,-500.0,0.00016712,2]
[396548301,1765045849685,-500.0,0.00016712,2]
[396548302,1765045849695,-2407.43,0.00016712,2]
[396548303,1765045849704,-500.0,0.00016712,2]
[396548304,1765045849713,-500.0,0.00016712,2]
[396548305,1765045849723,-500.0,0.00016712,2]
[396548306,1765045849732,-1940.4,0.00016712,2]
[396548307,1765045849741,-500.0,0.00016712,2]
[396548308,1765045849750,-500.0,0.00016712,2]
[396548309,1765045849759,-500.0,0.00016712,2]
[396548310,1765045849768,-4041.47,0.00016712,2]
[396548311,1765045849777,-500.0,0.00016712,2]
[396548312,1765045849787,-500.0,0.00016712,2]
[396548313,1765045849795,-500.0,0.00016712,2]
[396548314,1765045849805,-1988.42,0.00016712,2]
[396548315,1765045849814,-500.0,0.00016712,2]
[396548316,1765045849824,-500.0,0.00016712,2]
[396548317,1765045849833,-500.0,0.00016712,2]
[396548318,1765045849842,-500.0,0.00016712,2]
[396548319,1765045849852,-500.0,0.00016712,2]
[396548320,1765045849861,-1009.07,0.00016712,2]
[396548321,1765045849870,-500.0,0.00016712,2]
[396548322,1765045849879,-500.0,0.00016712,2]
[396548323,1765045849889,-711.29,0.00016712,2]
[396548324,1765045849898,-500.0,0.00016712,2]
[396548325,1765045849908,-500.0,0.00016712,2]
[396548326,1765045849917,-500.0,0.00016712,2]
[396548327,1765045849927,-500.0,0.00016712,2]
[396548328,1765045849936,-500.0,0.00016712,2]
[396548329,1765045849946,-500.0,0.00016712,2]
[396548330,1765045849955,-500.0,0.00016712,2]
[396548331,1765045849964,-500.0,0.00016712,2]
[396548332,1765045849974,-500.0,0.00016712,2]
[396548333,1765045849983,-500.0,0.00016712,2]
[396548334,1765045849993,-500.0,0.00016712,2]
[396548335,1765045850003,-500.0,0.00016712,2]
[396548336,1765045850012,-500.0,0.00016712,2]
[396548337,1765045850022,-500.0,0.00016712,2]
[396548338,1765045850031,-500.0,0.00016712,2]
[396548339,1765045850041,-500.0,0.00016712,2]
[396548340,1765045850051,-500.0,0.00016712,2]
[396548341,1765045850060,-568.48812078,0.00016712,2]
[396548342,1765045850070,-500.0,0.00016712,2]
[396548343,1765045850079,-500.0,0.00016712,2]
[396548344,1765045850092,-2977.1,0.00016712,2]
[396548345,1765045850102,-777.41,0.00016712,2]
[396548346,1765045850111,-2303.99,0.00016712,2]
[396548347,1765045850120,-500.0,0.00016712,2]
[396548348,1765045850130,-500.0,0.00016712,2]
[396548349,1765045850139,-553.05,0.00016712,2]
[396548350,1765045850148,-500.0,0.00016712,2]
[396548351,1765045850158,-500.0,0.00016712,2]
[396548352,1765045850167,-500.0,0.00016712,2]
[396548353,1765045850176,-500.0,0.00016712,2]
[396548354,1765045850185,-500.0,0.00016712,2]
[396548355,1765045850195,-4894.45,0.00016712,2]
[396548356,1765045850205,-834.43,0.00016712,2]
[396548357,1765045850214,-500.0,0.00016712,2]
[396548358,1765045850224,-501.86724321,0.00016712,2]
[396548359,1765045850233,-2751.07,0.00016712,2]
[396548360,1765045850243,-519.47,0.00016712,2]
[396548361,1765045850252,-500.0,0.00016712,2]
[396548362,1765045850262,-500.0,0.00016712,2]
[396548363,1765045850271,-500.0,0.00016712,2]
[396548364,1765045850280,-2158.63,0.00016712,2]
[396548365,1765045850291,-500.0,0.00016712,2]
[396548366,1765045850300,-227.69913585,0.00016712,2]
[396548367,1765045850309,-500.0,0.00016712,2]
[396548368,1765045850319,-500.0,0.00016712,2]
[396548369,1765045850329,-500.0,0.00016712,2]
[396548370,1765045850339,-500.0,0.00016712,2]
[396548371,1765045850348,-500.0,0.00016712,2]
[396548372,1765045850359,-500.0,0.00016712,2]
[396548373,1765045850368,-2590.26,0.00016712,2]
[396548374,1765045850378,-2303.12,0.00016712,2]
[396548375,1765045850388,-500.0,0.00016712,2]
[396548376,1765045850399,-2619.69,0.00016712,2]
[396548377,1765045850410,-500.0,0.00016712,2]
[396548378,1765045850421,-2417.93,0.00016712,2]
[396548379,1765045850431,-500.0,0.00016712,2]
[396548380,1765045850442,-500.0,0.00016712,2]
[396548381,1765045850452,-2179.89,0.00016712,2]
[396548382,1765045850462,-500.0,0.00016712,2]
[396548383,1765045850473,-526.04,0.00016712,2]
[396548384,1765045850482,-500.0,0.00016712,2]
[396548385,1765045850491,-642.95,0.00016712,2]
[396548386,1765045850500,-500.0,0.00016712,2]
[396548387,1765045850510,-2196.05,0.00016712,2]
[396548388,1765045850520,-276.83110656,0.00016712,2]
[396548389,1765045850530,-500.0,0.00016712,2]
[396548390,1765045850539,-2844.47,0.00016712,2]
[396548391,1765045850549,-500.0,0.00016712,2]
[396548392,1765045850558,-500.0,0.00016712,2]
[396548393,1765045850567,-633.39,0.00016712,2]
[396548394,1765045850577,-500.0,0.00016712,2]
[396548395,1765045850586,-500.0,0.00016712,2]
[396548396,1765045850596,-452.17830164,0.00016712,2]
[396548397,1765045850605,-500.0,0.00016712,2]
[396548398,1765045850614,-500.0,0.00016712,2]
[396548399,1765045850623,-500.0,0.00016712,2]
[396548400,1765045850632,-500.0,0.00016712,2]
[396548401,1765045850641,-500.0,0.00016712,2]
[396548402,1765045850651,-500.0,0.00016712,2]
[396548403,1765045850660,-500.0,0.00016712,2]
[396548404,1765045850670,-500.0,0.00016712,2]
[396548405,1765045850680,-518.73877924,0.00016712,2]
[396548406,1765045850689,-500.0,0.00016712,2]
[396548407,1765045850700,-2426.8,0.00016712,2]
[396548408,1765045850709,-794.76,0.00016712,2]
[396548409,1765045850718,-2586.49,0.00016712,2]
[396548410,1765045850730,-2488.24,0.00016712,2]
[396548411,1765045850739,-2349.96,0.00016712,2]
[396548412,1765045850749,-1097.88,0.00016712,2]
[396548413,1765045850759,-1918.43,0.00016712,2]
[396548414,1765045850768,-1172.05,0.00016712,2]
[396548415,1765045850778,-899.64,0.00016712,2]
[396548416,1765045850788,-665.62,0.00016712,2]
[396548417,1765045850797,-643.81,0.00016712,2]
[396548418,1765045850809,-735.69,0.00016712,2]
[396548419,1765045850818,-500.0,0.00016712,2]
[396548420,1765045850828,-1376.26,0.00016712,2]
[396548421,1765045850838,-500.0,0.00016712,2]
[396548422,1765045850847,-1474.63,0.00016712,2]
[396548423,1765045850856,-500.0,0.00016712,2]
[396548424,1765045850866,-2341.2,0.00016712,2]
[396548425,1765045850876,-500.0,0.00016712,2]
[396548426,1765045850886,-500.0,0.00016712,2]
[396548427,1765045850895,-500.0,0.00016712,2]
[396548428,1765045850905,-1294.18,0.00016712,2]
[396548429,1765045850914,-4017.47,0.00016712,2]
[396548430,1765045850924,-554.89,0.00016712,2]
[396548431,1765045850933,-500.0,0.00016712,2]
[396548432,1765045850943,-1336.44,0.00016712,2]
[396548433,1765045850954,-500.0,0.00016712,2]
[396548434,1765045850962,-2592.69,0.00016712,2]
[396548435,1765045850972,-1258.71,0.00016712,2]
[396548436,1765045850981,-678.09,0.00016712,2]
[396548437,1765045850991,-500.0,0.00016712,2]
[396548438,1765045851000,-538.03664818,0.00016712,2]
[396548439,1765045851010,-2066.0,0.00016712,2]
[396548440,1765045851019,-500.0,0.00016712,2]
[396548441,1765045851028,-500.0,0.00016712,2]
[396548442,1765045851038,-500.0,0.00016712,2]
[396548443,1765045851047,-514.46,0.00016712,2]
[396548444,1765045851057,-8259.23,0.00016712,2]
[396548445,1765045851066,-500.0,0.00016712,2]
[396548446,1765045851076,-2280.79,0.00016712,2]
[396548447,1765045851086,-500.0,0.00016712,2]
[396548448,1765045851095,-500.0,0.00016712,2]
[396548449,1765045851104,-2557.91,0.00016712,2]
[396548450,1765045851114,-500.0,0.00016712,2]
[396548451,1765045851123,-500.0,0.00016712,2]
[396548452,1765045851132,-5031.82,0.00016712,2]
[396548453,1765045851141,-500.0,0.00016712,2]
[396548454,1765045851150,-500.0,0.00016712,2]
[396548455,1765045851159,-500.0,0.00016712,2]
[396548456,1765045851168,-500.0,0.00016712,2]
[396548457,1765045851177,-500.0,0.00016712,2]
[396548458,1765045851187,-500.0,0.00016712,2]
[396548459,1765045851197,-945.76,0.00016712,2]
[396548460,1765045851207,-532.94,0.00016712,2]
[396548461,1765045851216,-500.0,0.00016712,2]
[396548462,1765045851226,-500.0,0.00016712,2]
[396548463,1765045851236,-500.0,0.00016712,2]
[396548464,1765045851245,-500.0,0.00016712,2]
[396548465,1765045851255,-748.18,0.00016712,2]
[396548466,1765045851264,-2497.7,0.00016712,2]
[396548467,1765045851274,-2642.38,0.00016712,2]
[396548468,1765045851283,-7543.37,0.00016712,2]
[396548469,1765045851292,-1162.66,0.00016712,2]
[396548470,1765045851562,-558.59,0.00016712,2]
[396548471,1765045851619,-500.0,0.00016712,2]
[396548472,1765045851629,-500.0,0.00016712,2]
[396548473,1765045851638,-518.26639628,0.00016712,2]
[396548474,1765045851647,-500.0,0.00016712,2]
[396548475,1765045851658,-599.45,0.00016712,2]
[396548476,1765045851667,-500.0,0.00016712,2]
[396548477,1765045851676,-2612.51,0.00016712,2]
[396548478,1765045851685,-2334.95,0.00016712,2]
[396548479,1765045851695,-571.82,0.00016712,2]
[396548480,1765045851705,-2822.45,0.00016712,2]
[396548481,1765045851714,-533.03261765,0.00016712,2]
[396548482,1765045851724,-2467.92,0.00016712,2]
[396548483,1765045851733,-500.0,0.00016712,2]
[396548484,1765045851742,-2431.19,0.00016712,2]
[396548485,1765045851751,-2478.55,0.00016712,2]
[396548486,1765045851760,-681.79,0.00016712,2]
[396548487,1765045851769,-1103.83,0.00016712,2]
[396548488,1765045851779,-613.69,0.00016712,2]
[396548489,1765045851788,-500.0,0.00016712,2]
[396548490,1765045851797,-623.02,0.00016712,2]
[396548491,1765045851806,-500.0,0.00016712,2]
[396548492,1765045851816,-2689.57,0.00016712,2]
[396548493,1765045851825,-165.177217,0.00016712,2]
[396548494,1765045851834,-165.177217,0.00016712,2]
[396548495,1765045851843,-534.26,0.00016712,2]
[396548496,1765045851853,-9053.72,0.00016712,2]
[396548497,1765045851862,-165.177217,0.00016712,2]
[396548498,1765045851872,-165.177217,0.00016712,2]
[396548499,1765045851883,-165.177217,0.00016712,2]
[396548500,1765045851892,-165.177217,0.00016712,2]
[396548501,1765045851902,-165.177217,0.00016712,2]
[396548502,1765045851912,-165.177217,0.00016712,2]
[396548503,1765045851922,-717.72,0.00016712,2]
[396548504,1765045851932,-500.0,0.00016712,2]
[396548505,1765045851942,-282.35799692,0.00016712,2]
[396548506,1765045851952,-1084.31,0.00016712,2]
[396548507,1765045851963,-2340.17,0.00016712,2]
[396548508,1765045851973,-500.0,0.00016712,2]
[396548509,1765045851983,-500.0,0.00016712,2]
[396548510,1765045851992,-500.0,0.00016712,2]
[396548511,1765045852001,-550.51,0.00016712,2]
[396548512,1765045852011,-500.0,0.00016712,2]
[396548513,1765045852021,-1891.66,0.00016712,2]
[396548514,1765045852030,-1415.86,0.00016712,2]
[396548515,1765045852039,-2184.32,0.00016712,2]
[396548516,1765045852048,-2473.05,0.00016712,2]
[396548517,1765045852057,-894.26,0.00016712,2]
[396548518,1765045852067,-500.0,0.00016712,2]
[396548519,1765045852076,-2585.4,0.00016712,2]
[396548520,1765045852086,-500.0,0.00016712,2]
[396548521,1765045852095,-2689.95,0.00016712,2]
[396548522,1765045852105,-591.58,0.00016712,2]
[396548523,1765045852114,-2625.08,0.00016712,2]
[396548524,1765045852123,-822.61,0.00016712,2]
[396548525,1765045852132,-500.0,0.00016712,2]
[396548526,1765045852141,-500.0,0.00016712,2]
[396548527,1765045852151,-2437.41,0.00016712,2]
[396548528,1765045852161,-2070.38,0.00016712,2]
[396548529,1765045852171,-538.71749559,0.00016712,2]
[396548530,1765045852180,-595.69,0.00016712,2]
[396548531,1765045852189,-2466.25,0.00016712,2]
[396548532,1765045852199,-3042.01,0.00016712,2]
[396548533,1765045852208,-9486.49,0.00016712,2]
[396548534,1765045852218,-692.96,0.00016712,2]
[396548535,1765045852228,-723.38,0.00016712,2]
[396548536,1765045852237,-2748.78,0.00016712,2]
[396548537,1765045852247,-2605.43,0.00016712,2]
[396548538,1765045852256,-500.0,0.00016712,2]
[396548539,1765045852265,-3046.73,0.00016712,2]
[396548540,1765045852275,-2122.53,0.00016712,2]
[396548541,1765045852284,-526.77,0.00016712,2]
[396548542,1765045852294,-3043.17,0.00016712,2]
[396548543,1765045852303,-1514.5,0.00016712,2]
[396548544,1765045852312,-712.87,0.00016712,2]
[396548545,1765045852322,-389.54654077,0.00016712,2]
[396548546,1765045852331,-500.0,0.00016712,2]
[396548547,1765045852341,-599.73,0.00016712,2]
[396548548,1765045852351,-500.0,0.00016712,2]
[396548549,1765045852360,-3047.82,0.00016712,2]
[396548550,1765045852370,-500.0,0.00016712,2]
[396548551,1765045852379,-500.0,0.00016712,2]
[396548552,1765045852389,-500.0,0.00016712,2]
[396548553,1765045852398,-529.42,0.00016712,2]
[396548554,1765045852407,-2596.43,0.00016712,2]
[396548555,1765045852417,-509.31,0.00016712,2]
[396548556,1765045852428,-500.0,0.00016712,2]
[396548557,1765045852440,-500.0,0.00016712,2]
[396548558,1765045852450,-500.0,0.00016712,2]
[396548559,1765045852460,-2844.07,0.00016712,2]
[396548560,1765045852469,-500.0,0.00016712,2]
[396548561,1765045852478,-500.0,0.00016712,2]
[396548562,1765045852488,-500.0,0.00016712,2]
[396548563,1765045852497,-500.0,0.00016712,2]
[396548564,1765045852507,-730.1,0.00016712,2]
[396548565,1765045852516,-605.91,0.00016712,2]
[396548566,1765045852526,-922.86,0.00016712,2]
[396548567,1765045852536,-500.0,0.00016712,2]
[396548568,1765045852546,-709.76,0.00016712,2]
[396548569,1765045852556,-2137.49,0.00016712,2]
[396548570,1765045852565,-500.0,0.00016712,2]
[396548571,1765045852574,-500.0,0.00016712,2]
[396548572,1765045852584,-1009.85,0.00016712,2]
[396548573,1765045852593,-2201.51,0.00016712,2]
[396548574,1765045852602,-500.0,0.00016712,2]
[396548575,1765045852612,-503.11276695,0.00016712,2]
[396548576,1765045852621,-500.0,0.00016712,2]
[396548577,1765045852631,-500.0,0.00016712,2]
[396548578,1765045852640,-500.0,0.00016712,2]
[396548579,1765045852649,-500.0,0.00016712,2]
[396548580,1765045852658,-500.0,0.00016712,2]
[396548581,1765045852668,-500.0,0.00016712,2]
[396548582,1765045852677,-2385.82,0.00016712,2]
[396548583,1765045852687,-500.0,0.00016712,2]
[396548584,1765045852698,-909.55,0.00016712,2]
[396548585,1765045852707,-2511.73,0.00016712,2]
[396548586,1765045852716,-500.0,0.00016712,2]
[396548587,1765045852725,-500.0,0.00016712,2]
[396548588,1765045852735,-500.0,0.00016712,2]
[396548589,1765045852744,-500.0,0.00016712,2]
[396548590,1765045852753,-500.0,0.00016712,2]
[396548591,1765045852763,-2027.03,0.00016712,2]
[396548592,1765045852774,-500.0,0.00016712,2]
[396548593,1765045852783,-500.0,0.00016712,2]
[396548594,1765045852792,-500.0,0.00016712,2]
[396548595,1765045852801,-615.87,0.00016712,2]
[396548596,1765045852810,-4048.67,0.00016712,2]
[396548597,1765045852819,-574.51,0.00016712,2]
[396548598,1765045852829,-516.22,0.00016712,2]
[396548599,1765045852839,-500.0,0.00016712,2]
[396548600,1765045852849,-343.49,0.00016712,2]
[396548601,1765045852858,-500.0,0.00016712,2]
[396548602,1765045852868,-799.17,0.00016712,2]
[396548603,1765045852878,-541.19368772,0.00016712,2]
[396548604,1765045852887,-673.27,0.00016712,2]
[396548605,1765045852897,-500.0,0.00016712,2]
[396548606,1765045852907,-500.0,0.00016712,2]
[396548607,1765045852918,-500.0,0.00016712,2]
[396548608,1765045852928,-2464.72,0.00016712,2]
[396548609,1765045852937,-1082.29,0.00016712,2]
[396548610,1765045852947,-5244.68372504,0.00016713,2]
[396548611,1765045852957,-420.0,0.00016723,2]
[396548612,1765045852967,-329.0,0.00016729,2]
[396548613,1765045852976,-4776.0,0.00016749,2]
[396548614,1765045852986,-150.0,0.00016757,2]
[396548615,1765045852997,-168.76,0.00016774,2]
[396548616,1765045853006,-5244.68372504,0.00016775,2]
[396548617,1765045853016,-158.25098336,0.00016783,2]
[396548618,1765045853026,-1680.0,0.00016807,2]
[396548619,1765045853036,-623.92734879,0.00016827,2]
[396548620,1765045853045,-5244.68372504,0.00016838,2]
[396548621,1765045853055,-265.81941433,0.00016886,2]
[396548622,1765045853065,-265.81941433,0.00016893,2]
[396548623,1765045853075,-213.28228275,0.000169,2]
[396548624,1765045853087,-265.81941433,0.000169,2]
[396548625,1765045853096,-2601.26565396,0.000169,2]
[396548626,1765045853106,-5244.68372504,0.000169,2]
[396548627,1765045853115,-672.01486945,0.000169,2]
[396548628,1765045853125,-150.0,0.00016923,2]
[396548629,1765045853135,-329.0,0.00016952,2]
[396548630,1765045853147,-500.0,0.00016973,2]
[396548631,1765045853157,-500.0,0.00016973,2]
[396548632,1765045853166,-508.91827658,0.00016973,2]
[396548633,1765045853175,-500.0,0.00016973,2]
[396548634,1765045853185,-500.0,0.00016973,2]
[396548635,1765045853195,-500.0,0.00016973,2]
[396548636,1765045853204,-500.0,0.00016973,2]
[396548637,1765045853213,-500.0,0.00016973,2]
[396548638,1765045853223,-500.0,0.00016973,2]
[396548639,1765045853232,-500.0,0.00016973,2]
[396548640,1765045853243,-500.0,0.00016973,2]
[396548641,1765045853252,-500.0,0.00016973,2]
[396548642,1765045853264,-500.0,0.00016973,2]
[396548643,1765045853274,-500.0,0.00016973,2]
[396548644,1765045853284,-500.0,0.00016973,2]
[396548645,1765045853295,-511.42312177,0.00016973,2]
[396548646,1765045853307,-500.0,0.00016973,2]
[396548647,1765045853317,-500.0,0.00016973,2]
[396548648,1765045853327,-546.20947811,0.00016973,2]
[396548649,1765045853338,-500.0,0.00016973,2]
[396548650,1765045853349,-500.0,0.00016973,2]
[396548651,1765045853358,-500.0,0.00016973,2]
[396548652,1765045853368,-500.0,0.00016973,2]
[396548653,1765045853378,-500.0,0.00016973,2]
[396548654,1765045853388,-500.0,0.00016973,2]
[396548655,1765045853399,-500.0,0.00016973,2]
[396548656,1765045853409,-537.32035954,0.00016973,2]
[396548657,1765045853418,-500.0,0.00016973,2]
[396548658,1765045853429,-500.0,0.00016973,2]
[396548659,1765045853441,-500.0,0.00016973,2]
[396548660,1765045853451,-500.0,0.00016973,2]
[396548661,1765045853462,-500.0,0.00016973,2]
[396548662,1765045853473,-500.0,0.00016973,2]
[396548663,1765045853486,-500.0,0.00016973,2]
[396548664,1765045853496,-500.0,0.00016973,2]
[396548665,1765045853506,-500.0,0.00016973,2]
[396548666,1765045853516,-500.0,0.00016973,2]
[396548667,1765045853527,-500.0,0.00016973,2]
[396548668,1765045853537,-500.0,0.00016973,2]
[396548669,1765045853547,-500.0,0.00016973,2]
[396548670,1765045853556,-500.0,0.00016973,2]
[396548671,1765045853566,-500.0,0.00016973,2]
[396548672,1765045853576,-500.0,0.00016973,2]
[396548673,1765045853586,-500.0,0.00016973,2]
[396548674,1765045853596,-500.0,0.00016973,2]
[396548675,1765045853606,-500.0,0.00016984,2]
[396548676,1765045853616,-500.0,0.00016984,2]
[396548677,1765045853627,-402.34038572,0.00016984,2]
[396548678,1765045853638,-500.0,0.00016984,2]
[396548679,1765045853647,-242.79480687,0.00016984,2]
[396548680,1765045853657,-1310.64,0.00016984,2]
[396548681,1765045853667,-617.75,0.00016985,2]
[396548682,1765045853676,-500.0,0.00016985,2]
[396548683,1765045853686,-500.0,0.00016985,2]
[396548684,1765045853696,-500.0,0.00016985,2]
[396548685,1765045853705,-500.0,0.00016985,2]
[396548686,1765045853715,-500.0,0.00016985,2]
[396548687,1765045853725,-500.0,0.00016985,2]
[396548688,1765045853735,-500.0,0.00016985,2]
[396548689,1765045853745,-500.0,0.00016985,2]
[396548690,1765045853755,-500.0,0.00016985,2]
[396548691,1765045853765,-500.0,0.00016985,2]
[396548692,1765045853775,-500.0,0.00016985,2]
[396548693,1765045853785,-500.0,0.00016985,2]
[396548694,1765045853795,-500.0,0.00016985,2]
[396548695,1765045853805,-500.0,0.00016985,2]
[396548696,1765045853815,-505.57875166,0.00016985,2]
[396548697,1765045853824,-500.0,0.00016985,2]
[396548698,1765045853835,-537.15821922,0.00016985,2]
[396548699,1765045853844,-500.0,0.00016985,2]
[396548700,1765045853854,-500.0,0.00016985,2]
[396548701,1765045853864,-500.0,0.00016985,2]
[396548702,1765045853874,-500.0,0.00016985,2]
[396548703,1765045853884,-2518.57,0.00016985,2]
[396548704,1765045853895,-500.0,0.00016985,2]
[396548705,1765045853906,-1641.32,0.00016985,2]
[396548706,1765045853916,-2444.03,0.00016985,2]
[396548707,1765045853926,-500.0,0.00016985,2]
[396548708,1765045853935,-500.0,0.00016985,2]
[396548709,1765045853945,-500.0,0.00016985,2]
[396548710,1765045853955,-2240.45,0.00016985,2]
[396548711,1765045853964,-500.0,0.00016985,2]
[396548712,1765045854072,-248.17725338,0.00016985,2]
[396548713,1765045854083,-500.0,0.00016985,2]
[396548714,1765045854094,-500.0,0.00016985,2]
[396548715,1765045854104,-500.0,0.00016985,2]
[396548716,1765045854116,-500.0,0.00016985,2]
[396548717,1765045854125,-2379.87,0.00016985,2]